[Event "Lithuanian Chess League 2021"]
[Site "Various cities"]
[Date "2021.05.15"]
[Round "6.8"]
[White "Vedrickas, Tautvydas"]
[Black "Valantiejus, Vaidotas"]
[Result "0-1"]
[WhiteElo "2395"]
[BlackElo "2117"]
[PlyCount "120"]
[TimeControl "90/40+30:0"]
[WhiteClock "0:08:59"]
[BlackClock "0:11:53"]

1. d4 {[%emt 0:00:32]} Nf6 {[%emt 0:00:16]} 2. c4 {[%emt 0:01:38]} g6 {[%emt 0:
00:20]} 3. Nc3 {[%emt 0:00:09]} d5 {[%emt 0:00:13]} 4. cxd5 {[%emt 0:00:26]}
Nxd5 {[%emt 0:00:07]} 5. e4 {[%emt 0:00:03]} Nxc3 {[%emt 0:00:06]} 6. bxc3 {
[%emt 0:00:04]} Bg7 {[%emt 0:00:13]} 7. Bc4 {[%emt 0:02:14]} c5 {[%emt 0:00:44]
} 8. Ne2 {[%emt 0:00:32]} Nc6 {[%emt 0:00:42]} 9. Be3 {[%emt 0:00:14]} O-O {
[%emt 0:00:17]} 10. O-O {[%emt 0:00:04]} Qc7 {[%emt 0:01:44]} 11. Rc1 {[%emt 0:
02:46]} b6 {[%emt 0:01:51]} 12. f4 {[%emt 0:05:19]} Bb7 {[%emt 0:03:05]} 13.
Qe1 {[%emt 0:03:58]} Na5 {[%emt 0:04:31]} 14. Bd3 {[%emt 0:07:12]} Qd7 {[%emt
0:09:03]} 15. f5 {[%emt 0:11:42]} cxd4 {[%emt 0:04:00]} 16. cxd4 {[%emt 0:02:
04]} Rac8 {[%emt 0:00:31]} 17. Qh4 {[%emt 0:02:42]} Rxc1 {[%emt 0:03:49]} 18.
Rxc1 {[%emt 0:03:27]} Nc6 {[%emt 0:03:28]} 19. Bb5 {[%emt 0:01:42]} a6 {[%emt
0:02:45]} 20. Bxc6 {[%emt 0:04:29]} Bxc6 {[%emt 0:00:02]} 21. d5 {[%emt 0:00:
08]} Bb5 {[%emt 0:04:58]} 22. Nd4 {[%emt 0:00:53]} Bf6 {[%emt 0:11:56]} 23. Qg3
{[%emt 0:05:58]} Rc8 {[%emt 0:01:40]} 24. Rxc8+ {[%emt 0:02:25]} Qxc8 {[%emt 0:
00:02]} 25. e5 {[%emt 0:03:41]} Bg7 {[%emt 0:00:23]} 26. h4 {[%emt 0:11:52]}
Be8 {[%emt 0:17:26]} 27. h5 {[%emt 0:04:21]} Qc4 {[%emt 0:05:33]} 28. f6 {
[%emt 0:10:00]} Bf8 {[%emt 0:11:55]} 29. fxe7 {[%emt 0:05:55]} Bxe7 {[%emt 0:
00:02]} 30. e6 {[%emt 0:02:17]} Qxd5 {[%emt 0:02:23]} 31. Qb8 {[%emt 0:02:41]}
Qd8 {[%emt 0:00:40]} 32. Qb7 {[%emt 0:02:57]} Bc5 {[%emt 0:02:23]} 33. Qe4 {
[%emt 0:00:22]} fxe6 {[%emt 0:02:15]} 34. Qxe6+ {[%emt 0:01:35]} Bf7 {[%emt 0:
00:13]} 35. Qe5 {[%emt 0:00:18]} Qd6 {[%emt 0:02:24]} 36. Qe4 {[%emt 0:00:13]}
Qd5 {[%emt 0:00:51]} 37. Qf4 {[%emt 0:01:00]} Qxh5 {[%emt 0:01:17]} 38. g4 {
[%emt 0:00:22]} Qd5 {[%emt 0:00:30]} 39. g5 {[%emt 0:00:47]} Bd6 {[%emt 0:01:
48]} 40. Qg4 {[%emt 0:00:28]} Qe5 {[%emt 0:01:48]} 41. Qc8+ {[%emt 0:05:33]}
Kg7 {[%emt 0:00:48]} 42. Qc3 {[%emt 0:01:25]} Kg8 {[%emt 0:03:34]} 43. Qc8+ {
[%emt 0:00:29]} Qe8 {[%emt 0:00:20]} 44. Qc3 {[%emt 0:00:16]} Bd5 {[%emt 0:03:
56]} 45. Nc2 {[%emt 0:05:06]} Qe4 {[%emt 0:03:48]} 46. Qc8+ {[%emt 0:00:31]}
Bf8 {[%emt 0:00:19]} 47. Kf2 {[%emt 0:01:31]} Be6 {[%emt 0:02:32]} 48. Qc7 {
[%emt 0:03:28]} Qc4 {[%emt 0:07:32]} 49. Bxb6 {[%emt 0:03:09]} Qxc7 {[%emt 0:
00:06]} 50. Bxc7 {[%emt 0:00:04]} Bxa2 {[%emt 0:00:03]} 51. Kg3 {[%emt 0:01:09]
} Bc5 {[%emt 0:00:56]} 52. Ba5 {[%emt 0:00:58]} Kf7 {[%emt 0:01:22]} 53. Kf4 {
[%emt 0:02:04]} Ke6 {[%emt 0:00:28]} 54. Nb4 {[%emt 0:00:53]} Bc4 {[%emt 0:02:
06]} 55. Ke4 {[%emt 0:00:45]} Be7 {[%emt 0:00:43]} 56. Kf4 {[%emt 0:00:39]} Bb5
{[%emt 0:00:25]} 57. Nc2 {[%emt 0:00:34]} Bd6+ {[%emt 0:00:31]} 58. Kg4 {[%emt
0:01:34]} Be2+ {[%emt 0:00:25]} 59. Kh4 {[%emt 0:00:08]} Bc5 {[%emt 0:00:36]}
60. Kg3 {[%emt 0:01:19]} Kf5 {[%emt 0:00:19]} 0-1

[Event "Lithuanian Chess League 2021"]
[Site "Various cities"]
[Date "2021.05.15"]
[Round "6.9"]
[White "Jankunas, Tomas"]
[Black "Sakalauskas, Vaidas"]
[Result "1/2-1/2"]
[WhiteElo "2115"]
[BlackElo "2331"]
[PlyCount "82"]
[TimeControl "90/40+30:0"]
[WhiteClock "0:02:22"]
[BlackClock "0:05:13"]

1. e4 {[%emt 0:07:52]} c5 {[%emt 0:00:00]} 2. c3 {[%emt 0:00:35]} Nf6 {[%emt 0:
00:49]} 3. e5 {[%emt 0:01:08]} Nd5 {[%emt 0:01:10]} 4. d4 {[%emt 0:00:06]} cxd4
{[%emt 0:00:11]} 5. Nf3 {[%emt 0:00:03]} d6 {[%emt 0:02:48]} 6. cxd4 {[%emt 0:
00:52]} Nc6 {[%emt 0:00:08]} 7. Bc4 {[%emt 0:00:08]} Nb6 {[%emt 0:00:21]} 8.
Bb5 {[%emt 0:01:04]} dxe5 {[%emt 0:00:08]} 9. Nxe5 {[%emt 0:00:13]} Bd7 {[%emt
0:00:06]} 10. Nxd7 {[%emt 0:02:44]} Qxd7 {[%emt 0:00:15]} 11. O-O {[%emt 0:00:
08]} e6 {[%emt 0:01:52]} 12. Nc3 {[%emt 0:02:07]} Be7 {[%emt 0:04:35]} 13. Qg4
{[%emt 0:01:30]} O-O {[%emt 0:01:00]} 14. Bxc6 {[%emt 0:00:12]} bxc6 {[%emt 0:
04:29]} 15. Bh6 {[%emt 0:00:34]} Bf6 {[%emt 0:00:25]} 16. Rfd1 {[%emt 0:00:24]}
e5 {[%emt 0:21:52]} 17. Qxd7 {[%emt 0:27:28]} Nxd7 {[%emt 0:00:07]} 18. dxe5 {
[%emt 0:00:04]} Nxe5 {[%emt 0:01:10]} 19. Ne4 {[%emt 0:00:10]} Be7 {[%emt 0:03:
18]} 20. Bf4 {[%emt 0:02:54]} Ng6 {[%emt 0:00:57]} 21. Bd6 {[%emt 0:07:12]}
Rfd8 {[%emt 0:00:54]} 22. Bxe7 {[%emt 0:05:40]} Nxe7 {[%emt 0:00:06]} 23. Kf1 {
[%emt 0:00:23]} Nd5 {[%emt 0:11:34]} 24. Rac1 {[%emt 0:03:28]} Rac8 {[%emt 0:
00:09]} 25. a3 {[%emt 0:03:21]} f5 {[%emt 0:08:21]} 26. Nc5 {[%emt 0:07:41]}
Ne7 {[%emt 0:03:55]} 27. Nd7 {[%emt 0:02:44]} Kf7 {[%emt 0:03:52]} 28. b4 {
[%emt 0:05:51]} Ke8 {[%emt 0:03:21]} 29. Ne5 {[%emt 0:01:22]} Rxd1+ {[%emt 0:
01:23]} 30. Rxd1 {[%emt 0:00:15]} Rd8 {[%emt 0:00:05]} 31. Rc1 {[%emt 0:04:59]}
Rd6 {[%emt 0:02:31]} 32. f4 {[%emt 0:01:15]} Re6 {[%emt 0:01:14]} 33. Kf2 {
[%emt 0:00:40]} Kd8 {[%emt 0:02:04]} 34. Rc5 {[%emt 0:10:11]} Kc7 {[%emt 0:01:
06]} 35. g3 {[%emt 0:00:22]} Rd6 {[%emt 0:02:57]} 36. Rc2 {[%emt 0:02:09]} Rd5
{[%emt 0:03:39]} 37. Nc4 {[%emt 0:02:54]} Rd4 {[%emt 0:02:32]} 38. Ke3 {[%emt
0:01:53]} Rd8 {[%emt 0:01:18]} 39. Ke2 {[%emt 0:02:41]} Rd4 {[%emt 0:00:54]}
40. Ke3 {[%emt 0:00:41]} Rd8 {[%emt 0:00:06]} 41. Ke2 {[%emt 0:00:22]} Rd4 {
[%emt 0:00:21]} 1/2-1/2

[Event "Lithuanian Chess League 2021"]
[Site "Various cities"]
[Date "2021.05.15"]
[Round "6.10"]
[White "Setkauskas, Vaidas"]
[Black "Aleknavicius, Andrius"]
[Result "1/2-1/2"]
[WhiteElo "2238"]
[BlackElo "1986"]
[PlyCount "30"]
[TimeControl "90/40+30:0"]
[WhiteClock "0:17:53"]
[BlackClock "0:29:34"]

1. e4 {[%emt 0:01:01]} c5 {[%emt 0:00:29]} 2. Nf3 {[%emt 0:00:27]} Nc6 {[%emt
0:00:08]} 3. d4 {[%emt 0:02:47]} cxd4 {[%emt 0:00:07]} 4. Nxd4 {[%emt 0:00:04]}
Nf6 {[%emt 0:00:07]} 5. Nc3 {[%emt 0:00:14]} d6 {[%emt 0:00:09]} 6. Bg5 {[%emt
0:01:51]} e6 {[%emt 0:03:00]} 7. Qd2 {[%emt 0:00:47]} a6 {[%emt 0:00:24]} 8.
O-O-O {[%emt 0:00:39]} Bd7 {[%emt 0:00:11]} 9. f4 {[%emt 0:03:14]} b5 {[%emt 0:
00:34]} 10. a3 {[%emt 0:07:10]} Be7 {[%emt 0:14:32]} 11. Nf3 {[%emt 0:08:08]}
b4 {[%emt 0:07:16]} 12. axb4 {[%emt 0:36:15]} Nxb4 {[%emt 0:00:25]} 13. Bc4 {
[%emt 0:13:29]} Rc8 {[%emt 0:09:56]} 14. Bb3 {[%emt 0:01:00]} Qa5 {[%emt 0:23:
51]} 15. Kb1 {[%emt 0:02:59]} Bc6 {[%emt 0:07:18]} 1/2-1/2

[Event "Lithuanian Chess League 2021"]
[Site "Various cities"]
[Date "2021.05.15"]
[Round "6.11"]
[White "Kazakouski, Valery"]
[Black "Chocenka, Dmitrijus"]
[Result "1-0"]
[WhiteElo "2495"]
[BlackElo "2327"]
[PlyCount "87"]
[TimeControl "90/40+30:0"]
[WhiteClock "0:13:00"]
[BlackClock "0:27:33"]

1. d4 {[%emt 0:00:03]} Nf6 {[%emt 0:00:04]} 2. Nf3 {[%emt 0:00:10]} g6 {[%emt
0:00:05]} 3. c4 {[%emt 0:00:05]} Bg7 {[%emt 0:00:03]} 4. g3 {[%emt 0:00:11]}
O-O {[%emt 0:00:07]} 5. Bg2 {[%emt 0:00:06]} d6 {[%emt 0:00:04]} 6. O-O {[%emt
0:00:10]} Nc6 {[%emt 0:00:02]} 7. Nc3 {[%emt 0:00:22]} Bf5 {[%emt 0:00:05]} 8.
d5 {[%emt 0:01:00]} Na5 {[%emt 0:00:30]} 9. Nh4 {[%emt 0:00:25]} Bd7 {[%emt 0:
01:00]} 10. b3 {[%emt 0:00:58]} c6 {[%emt 0:05:00]} 11. Bb2 {[%emt 0:01:14]}
cxd5 {[%emt 0:03:47]} 12. Nxd5 {[%emt 0:00:47]} Nxd5 {[%emt 0:00:26]} 13. Bxg7
{[%emt 0:00:09]} Kxg7 {[%emt 0:03:43]} 14. cxd5 {[%emt 0:00:32]} b5 {[%emt 0:
02:37]} 15. Qd4+ {[%emt 0:02:20]} f6 {[%emt 0:02:15]} 16. Rfc1 {[%emt 0:05:54]}
Qb6 {[%emt 0:03:32]} 17. Nf3 {[%emt 0:15:23]} Qxd4 {[%emt 0:05:23]} 18. Nxd4 {
[%emt 0:00:03]} Rfc8 {[%emt 0:01:06]} 19. Nc6 {[%emt 0:10:38]} Bxc6 {[%emt 0:
03:39]} 20. dxc6 {[%emt 0:00:09]} Rc7 {[%emt 0:00:04]} 21. b4 {[%emt 0:02:55]}
Nc4 {[%emt 0:00:38]} 22. a4 {[%emt 0:00:20]} Nb6 {[%emt 0:04:58]} 23. axb5 {
[%emt 0:00:57]} e6 {[%emt 0:01:43]} 24. Rd1 {[%emt 0:07:34]} Rd8 {[%emt 0:01:
12]} 25. e4 {[%emt 0:03:15]} Kf7 {[%emt 0:00:43]} 26. f4 {[%emt 0:04:52]} Ke7 {
[%emt 0:01:44]} 27. Kf2 {[%emt 0:01:15]} Rb8 {[%emt 0:03:20]} 28. h4 {[%emt 0:
05:49]} Rg8 {[%emt 0:06:09]} 29. Bf3 {[%emt 0:02:22]} h6 {[%emt 0:02:02]} 30.
Ra2 {[%emt 0:05:29]} Rg7 {[%emt 0:05:54]} 31. Rad2 {[%emt 0:02:51]} Nc8 {[%emt
0:00:11]} 32. Be2 {[%emt 0:03:41]} Rg8 {[%emt 0:05:54]} 33. g4 {[%emt 0:04:44]}
Rf8 {[%emt 0:05:28]} 34. f5 {[%emt 0:02:14]} gxf5 {[%emt 0:04:05]} 35. gxf5 {
[%emt 0:00:17]} e5 {[%emt 0:00:55]} 36. Bc4 {[%emt 0:03:00]} a6 {[%emt 0:00:20]
} 37. bxa6 {[%emt 0:02:13]} Rxc6 {[%emt 0:00:11]} 38. Be2 {[%emt 0:00:29]} Rb6
{[%emt 0:00:49]} 39. b5 {[%emt 0:02:23]} Na7 {[%emt 0:00:15]} 40. Rg1 {[%emt 0:
00:36]} Nxb5 {[%emt 0:04:16]} 41. Rg7+ {[%emt 0:00:43]} Rf7 {[%emt 0:00:07]}
42. Rxf7+ {[%emt 0:00:11]} Kxf7 {[%emt 0:00:06]} 43. Rb2 {[%emt 0:00:13]} Rxa6
{[%emt 0:00:13]} 44. Bxb5 {[%emt 0:00:08]} 1-0

[Event "Lithuanian Chess League 2021"]
[Site "Various cities"]
[Date "2021.05.15"]
[Round "6.12"]
[White "Indriunas, Matas"]
[Black "Zagorskis, Darius"]
[Result "1/2-1/2"]
[WhiteElo "2227"]
[BlackElo "2408"]
[PlyCount "96"]
[TimeControl "90/40+30:0"]
[WhiteClock "0:22:06"]
[BlackClock "0:19:14"]

1. e4 {[%emt 0:00:03]} c5 {[%emt 0:00:05]} 2. Nf3 {[%emt 0:00:05]} e6 {[%emt 0:
00:11]} 3. d4 {[%emt 0:00:08]} cxd4 {[%emt 0:00:08]} 4. Nxd4 {[%emt 0:00:03]}
Nc6 {[%emt 0:00:52]} 5. Nc3 {[%emt 0:00:23]} Qc7 {[%emt 0:00:39]} 6. Be3 {
[%emt 0:00:39]} a6 {[%emt 0:01:23]} 7. Be2 {[%emt 0:01:08]} Nf6 {[%emt 0:00:45]
} 8. O-O {[%emt 0:00:16]} d6 {[%emt 0:06:57]} 9. f4 {[%emt 0:00:24]} Be7 {
[%emt 0:00:10]} 10. Qe1 {[%emt 0:00:32]} O-O {[%emt 0:01:18]} 11. Qg3 {[%emt 0:
00:09]} Nxd4 {[%emt 0:01:24]} 12. Bxd4 {[%emt 0:00:04]} b5 {[%emt 0:00:15]} 13.
a3 {[%emt 0:00:18]} Bb7 {[%emt 0:00:16]} 14. Rae1 {[%emt 0:00:43]} Rad8 {[%emt
0:03:24]} 15. Bd3 {[%emt 0:00:29]} g6 {[%emt 0:05:50]} 16. Kh1 {[%emt 0:13:14]}
Nh5 {[%emt 0:12:06]} 17. Qh3 {[%emt 0:05:52]} e5 {[%emt 0:08:43]} 18. Be3 {
[%emt 0:05:51]} exf4 {[%emt 0:02:00]} 19. Bxf4 {[%emt 0:00:39]} Nxf4 {[%emt 0:
00:27]} 20. Rxf4 {[%emt 0:00:05]} Bg5 {[%emt 0:04:42]} 21. Rf2 {[%emt 0:00:27]}
Rde8 {[%emt 0:02:29]} 22. Ref1 {[%emt 0:10:20]} Re5 {[%emt 0:00:38]} 23. Qg4 {
[%emt 0:11:10]} Qe7 {[%emt 0:00:41]} 24. a4 {[%emt 0:04:50]} b4 {[%emt 0:13:14]
} 25. Nd5 {[%emt 0:00:23]} Bxd5 {[%emt 0:00:12]} 26. exd5 {[%emt 0:00:05]} a5 {
[%emt 0:00:14]} 27. Qc4 {[%emt 0:13:59]} f5 {[%emt 0:14:16]} 28. Qb5 {[%emt 0:
06:21]} Qc7 {[%emt 0:02:20]} 29. Qc4 {[%emt 0:01:34]} Qxc4 {[%emt 0:02:51]} 30.
Bxc4 {[%emt 0:00:09]} Rfe8 {[%emt 0:02:10]} 31. g3 {[%emt 0:01:46]} h5 {[%emt
0:00:47]} 32. Kg2 {[%emt 0:01:55]} Kg7 {[%emt 0:00:06]} 33. b3 {[%emt 0:08:05]}
R8e7 {[%emt 0:01:05]} 34. Rd1 {[%emt 0:01:03]} Re4 {[%emt 0:00:48]} 35. Kf1 {
[%emt 0:01:52]} Bf6 {[%emt 0:06:05]} 36. Re2 {[%emt 0:01:48]} Bc3 {[%emt 0:00:
09]} 37. Bd3 {[%emt 0:02:27]} Rxe2 {[%emt 0:00:07]} 38. Bxe2 {[%emt 0:00:04]}
Kf6 {[%emt 0:00:18]} 39. Kf2 {[%emt 0:01:05]} g5 {[%emt 0:01:52]} 40. h3 {
[%emt 0:06:45]} g4 {[%emt 0:00:55]} 41. hxg4 {[%emt 0:02:52]} hxg4 {[%emt 0:02:
37]} 42. Bc4 {[%emt 0:03:27]} Kg5 {[%emt 0:06:20]} 43. Rf1 {[%emt 0:03:34]} Re5
{[%emt 0:04:22]} 44. Kg2 {[%emt 0:01:28]} Be1 {[%emt 0:02:10]} 45. Bd3 {[%emt
0:00:41]} Bd2 {[%emt 0:00:29]} 46. Bc4 {[%emt 0:00:36]} Bc3 {[%emt 0:05:48]}
47. Rf2 {[%emt 0:01:33]} Be1 {[%emt 0:00:40]} 48. Re2 {[%emt 0:00:54]} Rxe2+ {
[%emt 0:00:05]} 1/2-1/2

[Event "Lithuanian Chess League 2021"]
[Site "Various cities"]
[Date "2021.05.15"]
[Round "6.13"]
[White "Brazdzionis, Andrius"]
[Black "Limontas, Martynas"]
[Result "1/2-1/2"]
[WhiteElo "2333"]
[BlackElo "2311"]
[PlyCount "98"]
[TimeControl "90/40+30:0"]
[WhiteClock "0:21:49"]
[BlackClock "0:20:01"]

1. d4 {[%emt 0:00:10]} Nf6 {[%emt 0:00:06]} 2. c4 {[%emt 0:00:14]} e6 {[%emt 0:
00:10]} 3. Nf3 {[%emt 0:00:45]} Bb4+ {[%emt 0:00:54]} 4. Bd2 {[%emt 0:02:20]}
a5 {[%emt 0:00:54]} 5. Qc2 {[%emt 0:05:53]} d6 {[%emt 0:09:18]} 6. g3 {[%emt 0:
08:30]} Nbd7 {[%emt 0:09:54]} 7. Bg2 {[%emt 0:01:23]} e5 {[%emt 0:00:09]} 8.
O-O {[%emt 0:03:08]} O-O {[%emt 0:09:14]} 9. Bg5 {[%emt 0:01:58]} exd4 {[%emt
0:01:22]} 10. Nxd4 {[%emt 0:00:06]} Re8 {[%emt 0:05:30]} 11. Nc3 {[%emt 0:04:
49]} h6 {[%emt 0:08:59]} 12. Bf4 {[%emt 0:02:44]} Nb6 {[%emt 0:09:34]} 13. Rad1
{[%emt 0:03:53]} a4 {[%emt 0:01:23]} 14. b3 {[%emt 0:10:06]} Qe7 {[%emt 0:10:
11]} 15. Nxa4 {[%emt 0:20:05]} Nxa4 {[%emt 0:01:42]} 16. bxa4 {[%emt 0:00:02]}
Ne4 {[%emt 0:05:37]} 17. Nb5 {[%emt 0:01:55]} Bf5 {[%emt 0:02:20]} 18. Qb3 {
[%emt 0:08:09]} Bc5 {[%emt 0:01:25]} 19. Bxe4 {[%emt 0:06:52]} Bxe4 {[%emt 0:
00:18]} 20. Nc3 {[%emt 0:00:33]} Bc6 {[%emt 0:01:55]} 21. Rd3 {[%emt 0:01:33]}
Qd7 {[%emt 0:01:00]} 22. e4 {[%emt 0:02:37]} b6 {[%emt 0:03:06]} 23. Be3 {
[%emt 0:01:00]} Bxe4 {[%emt 0:03:41]} 24. Nxe4 {[%emt 0:00:05]} Rxe4 {[%emt 0:
00:03]} 25. Bxc5 {[%emt 0:00:06]} bxc5 {[%emt 0:00:04]} 26. Qb7 {[%emt 0:00:18]
} Ree8 {[%emt 0:00:55]} 27. Re3 {[%emt 0:05:54]} Qxa4 {[%emt 0:03:57]} 28.
Rxe8+ {[%emt 0:00:35]} Rxe8 {[%emt 0:00:40]} 29. Qxc7 {[%emt 0:00:07]} Qxa2 {
[%emt 0:00:50]} 30. Qc6 {[%emt 0:04:30]} Qe2 {[%emt 0:01:34]} 31. Qd5 {[%emt 0:
03:20]} Qe4 {[%emt 0:04:10]} 32. Qxe4 {[%emt 0:01:14]} Rxe4 {[%emt 0:00:04]}
33. Rd1 {[%emt 0:00:01]} Re6 {[%emt 0:00:50]} 34. f3 {[%emt 0:00:33]} Kf8 {
[%emt 0:00:09]} 35. Kf2 {[%emt 0:00:00]} Ke7 {[%emt 0:00:05]} 36. Ra1 {[%emt 0:
00:12]} Kf6 {[%emt 0:02:14]} 37. Rd1 {[%emt 0:00:59]} h5 {[%emt 0:02:05]} 38.
h4 {[%emt 0:00:27]} g6 {[%emt 0:00:10]} 39. Rd2 {[%emt 0:00:20]} Ke7 {[%emt 0:
00:06]} 40. Ra2 {[%emt 0:00:06]} Re5 {[%emt 0:00:39]} 41. Ra7+ {[%emt 0:02:02]}
Ke6 {[%emt 0:00:12]} 42. Ra6 {[%emt 0:02:46]} f6 {[%emt 0:02:33]} 43. Ra7 {
[%emt 0:04:21]} Kf5 {[%emt 0:08:54]} 44. Rd7 {[%emt 0:01:12]} Re6 {[%emt 0:00:
07]} 45. Rd8 {[%emt 0:02:16]} g5 {[%emt 0:04:15]} 46. Rh8 {[%emt 0:01:45]} Kg6
{[%emt 0:00:37]} 47. hxg5 {[%emt 0:00:49]} fxg5 {[%emt 0:00:08]} 48. Rg8+ {
[%emt 0:00:09]} Kf6 {[%emt 0:00:39]} 49. Rh8 {[%emt 0:00:21]} Kg6 {[%emt 0:00:
13]} 1/2-1/2

[Event "Lithuanian Chess League 2021"]
[Site "Various cities"]
[Date "2021.05.15"]
[Round "6.14"]
[White "Mickevicius, Juras"]
[Black "Dambrauskas, Virginijus"]
[Result "1-0"]
[WhiteElo "2281"]
[BlackElo "2209"]
[PlyCount "137"]
[TimeControl "90/40+30:0"]
[WhiteClock "0:03:23"]
[BlackClock "0:00:53"]

1. d4 {[%emt 0:00:03]} d5 {[%emt 0:00:10]} 2. c4 {[%emt 0:00:04]} c6 {[%emt 0:
00:56]} 3. Nf3 {[%emt 0:00:03]} Nf6 {[%emt 0:00:11]} 4. e3 {[%emt 0:00:05]} e6
{[%emt 0:01:40]} 5. b3 {[%emt 0:00:05]} Nbd7 {[%emt 0:00:44]} 6. Bb2 {[%emt 0:
00:13]} b6 {[%emt 0:04:08]} 7. Bd3 {[%emt 0:00:16]} Bb7 {[%emt 0:00:13]} 8. O-O
{[%emt 0:00:06]} Be7 {[%emt 0:03:04]} 9. Nc3 {[%emt 0:00:21]} O-O {[%emt 0:00:
45]} 10. Qe2 {[%emt 0:00:27]} c5 {[%emt 0:04:12]} 11. cxd5 {[%emt 0:01:16]}
exd5 {[%emt 0:06:33]} 12. Rac1 {[%emt 0:01:58]} Re8 {[%emt 0:18:28]} 13. Rfd1 {
[%emt 0:02:51]} Bd6 {[%emt 0:01:05]} 14. Ba6 {[%emt 0:17:56]} Qc8 {[%emt 0:12:
42]} 15. Bxb7 {[%emt 0:00:35]} Qxb7 {[%emt 0:00:07]} 16. dxc5 {[%emt 0:03:31]}
bxc5 {[%emt 0:01:59]} 17. Qb5 {[%emt 0:00:42]} Nb6 {[%emt 0:01:44]} 18. Na4 {
[%emt 0:03:35]} Qd7 {[%emt 0:20:05]} 19. Qxd7 {[%emt 0:00:46]} Nfxd7 {[%emt 0:
00:11]} 20. Nc3 {[%emt 0:00:17]} d4 {[%emt 0:10:12]} 21. exd4 {[%emt 0:01:42]}
c4 {[%emt 0:00:15]} 22. g3 {[%emt 0:01:45]} Rac8 {[%emt 0:02:45]} 23. Nd2 {
[%emt 0:08:33]} cxb3 {[%emt 0:00:19]} 24. axb3 {[%emt 0:00:10]} Nf6 {[%emt 0:
00:24]} 25. Nb5 {[%emt 0:00:57]} Rxc1 {[%emt 0:01:06]} 26. Bxc1 {[%emt 0:10:27]
} Bb8 {[%emt 0:00:17]} 27. Nc4 {[%emt 0:01:59]} Nbd5 {[%emt 0:00:41]} 28. Bd2 {
[%emt 0:06:55]} Ne4 {[%emt 0:01:17]} 29. Ra1 {[%emt 0:07:36]} Nxd2 {[%emt 0:01:
15]} 30. Nxd2 {[%emt 0:00:03]} Re7 {[%emt 0:00:08]} 31. Rc1 {[%emt 0:00:16]}
Kf8 {[%emt 0:00:25]} 32. Rc8+ {[%emt 0:00:41]} Re8 {[%emt 0:00:08]} 33. Rxe8+ {
[%emt 0:00:03]} Kxe8 {[%emt 0:00:08]} 34. Kf1 {[%emt 0:00:16]} Kd7 {[%emt 0:00:
59]} 35. Ke2 {[%emt 0:02:06]} Kc6 {[%emt 0:00:52]} 36. Na3 {[%emt 0:00:05]} Nb4
{[%emt 0:00:09]} 37. Ne4 {[%emt 0:01:57]} a6 {[%emt 0:03:08]} 38. Ke3 {[%emt 0:
08:29]} h5 {[%emt 0:01:43]} 39. h3 {[%emt 0:02:42]} f5 {[%emt 0:02:30]} 40. Nc3
{[%emt 0:01:18]} g5 {[%emt 0:00:16]} 41. Nc4 {[%emt 0:07:32]} Kd7 {[%emt 0:01:
50]} 42. Ne5+ {[%emt 0:04:14]} Ke6 {[%emt 0:02:44]} 43. Nf3 {[%emt 0:00:43]} g4
{[%emt 0:01:48]} 44. hxg4 {[%emt 0:02:28]} hxg4 {[%emt 0:00:33]} 45. Ne1 {
[%emt 0:01:23]} Ba7 {[%emt 0:08:18]} 46. Ne2 {[%emt 0:01:02]} Bb6 {[%emt 0:04:
44]} 47. Ng2 {[%emt 0:01:39]} Ba5 {[%emt 0:07:33]} 48. Ngf4+ {[%emt 0:01:12]}
Kd6 {[%emt 0:00:17]} 49. Ng2 {[%emt 0:16:32]} Ke6 {[%emt 0:00:52]} 50. Nef4+ {
[%emt 0:00:32]} Kd6 {[%emt 0:00:08]} 51. Nh4 {[%emt 0:00:39]} Nc2+ {[%emt 0:03:
49]} 52. Kd3 {[%emt 0:00:05]} Ne1+ {[%emt 0:00:09]} 53. Kc4 {[%emt 0:01:04]}
Nf3 {[%emt 0:00:54]} 54. Nxf5+ {[%emt 0:00:12]} Kc6 {[%emt 0:00:38]} 55. d5+ {
[%emt 0:05:45]} Kd7 {[%emt 0:00:24]} 56. Ne3 {[%emt 0:02:06]} Nd2+ {[%emt 0:00:
51]} 57. Kd3 {[%emt 0:00:06]} Nxb3 {[%emt 0:00:05]} 58. Nxg4 {[%emt 0:00:05]}
Bb6 {[%emt 0:00:24]} 59. Ne5+ {[%emt 0:00:56]} Ke7 {[%emt 0:00:50]} 60. f3 {
[%emt 0:00:39]} Bf2 {[%emt 0:00:44]} 61. g4 {[%emt 0:01:11]} Nc5+ {[%emt 0:00:
16]} 62. Kc4 {[%emt 0:00:35]} Nb7 {[%emt 0:00:10]} 63. Nc6+ {[%emt 0:01:00]}
Kf6 {[%emt 0:01:46]} 64. Nh3 {[%emt 0:01:40]} Nd6+ {[%emt 0:00:47]} 65. Kd3 {
[%emt 0:00:04]} Bb6 {[%emt 0:00:15]} 66. Kc3 {[%emt 0:03:49]} Nb5+ {[%emt 0:02:
05]} 67. Kd3 {[%emt 0:00:57]} Nd6 {[%emt 0:00:08]} 68. Nb8 {[%emt 0:00:22]} Ba5
{[%emt 0:02:06]} 69. f4 {[%emt 0:01:55]} 1-0

[Event "Lithuanian Chess League 2021"]
[Site "Various cities"]
[Date "2021.05.15"]
[Round "6.15"]
[White "Zaura, Vidmantas"]
[Black "Bastys, Robertas"]
[Result "0-1"]
[WhiteElo "2087"]
[BlackElo "2217"]
[PlyCount "58"]
[TimeControl "90/40+30:0"]
[WhiteClock "0:11:12"]
[BlackClock "0:22:13"]

1. Nf3 {[%emt 0:00:03]} Nf6 {[%emt 0:00:08]} 2. g3 {[%emt 0:00:03]} b5 {[%emt
0:00:19]} 3. Bg2 {[%emt 0:00:05]} Bb7 {[%emt 0:00:11]} 4. c3 {[%emt 0:00:19]}
e6 {[%emt 0:01:25]} 5. a4 {[%emt 0:00:19]} b4 {[%emt 0:04:00]} 6. a5 {[%emt 0:
00:27]} c5 {[%emt 0:02:55]} 7. O-O {[%emt 0:00:53]} Be7 {[%emt 0:00:48]} 8. d4
{[%emt 0:02:03]} cxd4 {[%emt 0:09:39]} 9. cxb4 {[%emt 0:07:25]} Bxb4 {[%emt 0:
02:16]} 10. Qb3 {[%emt 0:02:57]} Na6 {[%emt 0:02:26]} 11. Bd2 {[%emt 0:20:38]}
Rb8 {[%emt 0:09:18]} 12. Qc4 {[%emt 0:03:45]} O-O {[%emt 0:06:17]} 13. Bxb4 {
[%emt 0:11:59]} Nxb4 {[%emt 0:00:12]} 14. Qxb4 {[%emt 0:00:29]} Bxf3 {[%emt 0:
00:26]} 15. Qxd4 {[%emt 0:00:15]} Bxg2 {[%emt 0:10:24]} 16. Kxg2 {[%emt 0:00:
05]} Qc7 {[%emt 0:01:26]} 17. Nc3 {[%emt 0:11:33]} Rxb2 {[%emt 0:03:44]} 18.
Rfc1 {[%emt 0:01:03]} Rfb8 {[%emt 0:06:49]} 19. Kg1 {[%emt 0:01:08]} R2b4 {
[%emt 0:01:53]} 20. Nb5 {[%emt 0:14:30]} Qxc1+ {[%emt 0:01:48]} 21. Rxc1 {
[%emt 0:00:03]} Rxd4 {[%emt 0:00:08]} 22. Nxd4 {[%emt 0:00:05]} Ne8 {[%emt 0:
01:15]} 23. Kg2 {[%emt 0:01:43]} Kf8 {[%emt 0:00:48]} 24. Rc3 {[%emt 0:01:32]}
Rb4 {[%emt 0:02:27]} 25. e3 {[%emt 0:01:40]} Ra4 {[%emt 0:02:18]} 26. Nb3 {
[%emt 0:01:02]} Ra3 {[%emt 0:00:47]} 27. Kf3 {[%emt 0:03:24]} Nd6 {[%emt 0:03:
47]} 28. Rd3 {[%emt 0:02:33]} Nc4 {[%emt 0:03:39]} 29. Ke4 {[%emt 0:01:58]}
Rxb3 {[%emt 0:01:02]} 0-1